Cogmind - Beta 14 *** ADVENTURER MODE // 2024.08.09 @ 15:47:37 Player: scalychimp Result: Destroyed by H-66 Slayer with Gauss Rifle Performance ------------- Evolutions (5) 2500 Regions Visited (8) 1600 Robots Destroyed (173) 865 Value Destroyed (5446) 5446 Prototype IDs (44) 880 Alien Tech Used (0) 0 Bonus (512) 512 TOTAL SCORE: 11803 Bonus ------- High Alert Combat Kills 212 Aligned with FarCom 300 Cogmind --------- Core Integrity 0/1000 Matter 290/300 Energy 100/100 System Corruption 14% Temperature Cool (0) Movement Core (100) Ox1 Location -5/Factory Parts ------- > --- POWER (1) -------- (None) > --- PROPULSION (4) --- (None) > --- UTILITY (10) ----- (None) > --- WEAPON (2) ------- Great Axe > --- INVENTORY (5) ---- Improved Hacking Suite Improved Arc Projector Magnetic Acceleration Cannon Smartbomb Launcher Peak State ------------ > --- POWER ------------ Micro Nuclear Core > --- PROPULSION ------- Cooled Aerolev Unit Combat Airjet Gravmag Array > --- UTILITY ---------- Enhanced Optical Array Transmission Jammer Improved Reaction Control System Improved Propulsion Shielding Layered Light Armor Plating Hacking Suite Hacking Suite Hacking Suite System Restoration Module Drone Bay > --- WEAPON ----------- Smartbomb Launcher > --- INVENTORY -------- Improved Hacking Suite Improved Arc Projector Coil Gun Missile Launcher Makeshift Hammer [Rating: 78] Favorites ----------- Power Micro Nuclear Core Engine Ion Engine Power Core Micro Nuclear Core Propulsion Improved VTOL Module Treads Light Treads Leg Aluminum Leg Hover Unit Cooled Aerolev Unit Flight Unit Improved VTOL Module Utility Hacking Suite Device Improved Reaction Control System Storage Medium Storage Unit Processor Advanced Visual Processing Unit Hackware Hacking Suite Protection Layered Light Armor Plating Weapon Makeshift Hammer Energy Gun High-powered Shock Rifle Energy Cannon Disruptor Cannon Ballistic Gun Light Assault Rifle Ballistic Cannon Improved Light Cannon Launcher Advanced EMP Blaster Special Weapon Improved Plasma Cutter Impact Weapon Makeshift Hammer Slashing Weapon Great Axe Piercing Weapon Spear Special Melee Weapon Datajack Build | -11 -10 -10 -10 -9 -8 -7 -6 -5 ------- Run | Yrd Mat Min Exi Min Mat Fac Fac Fac Slots Evolved 10 | . . . . . 4 2 2 2 Power . | . . . . . . . . . Propulsion 2 | . . . . . 2 . . . Utility 8 | . . . . . 2 2 2 2 Weapon . | . . . . . . . . . Parts Attached 261 | 7 4 11 5 . 25 91 91 27 Power 28 | 1 1 1 . . 7 8 9 1 Engine 10 | 1 1 1 . . 1 2 3 1 Core 18 | . . . . . 6 6 6 . Reactor . | . . . . . . . . . Propulsion 46 | 2 2 1 . . 6 15 16 4 Treads 7 | . . . . . 6 . . 1 Leg 6 | 2 2 1 . . . . . 1 Wheel . | . . . . . . . . . Hover 13 | . . . . . . 1 12 . Flight 20 | . . . . . . 14 4 2 Utility 60 | 2 . 2 3 . 3 23 22 5 Device 21 | 1 . 1 . . . 7 9 3 Storage 4 | 1 . . 3 . . . . . Processor 4 | . . 1 . . 1 1 1 . Hackware 6 | . . . . . . 3 3 . Protection 25 | . . . . . 2 12 9 2 Artifact . | . . . . . . . . . Weapon 127 | 2 1 7 2 . 9 45 44 17 Energy Gun 20 | 1 . 1 . . 2 7 8 1 Energy Cannon 3 | . . . . . . . . 3 Ballistic Gun 27 | 1 . . 1 . 2 13 7 3 Ballistic Cannon 2 | . . . . . 1 . . 1 Launcher 20 | . 1 3 . . . 5 6 5 Special Weapon 3 | . . . . . . . 2 1 Impact Weapon 38 | . . 3 . . 2 11 20 2 Slashing Weapon 1 | . . . . . . . . 1 Piercing Weapon 1 | . . . . . . . 1 . Special Melee Weapon 12 | . . . 1 . 2 9 . . Unidentified Prototypes 10 | . . 1 . . . 6 2 1 Corrupted Parts 2 | . . . . . 1 . 1 . System Corruption 5 | . . . . . 4 . 1 . Parts Lost 45 | . . . . . 9 4 9 23 Power 6 | . . . . . 2 . 3 1 Propulsion 13 | . . . . . 6 1 . 6 Utility 19 | . . . . . . 3 4 12 Weapon 7 | . . . . . 1 . 2 4 Highest Loss Streak 14 | . . . . . 2 3 2 14 To Critical Strikes 1 | . . . . . 1 . . . Average Slot Usage (%) 89 | . 100 100 97 100 82 97 87 76 Engine 3 | . 14 14 14 14 2 . . . Core 4 | . . . . . 6 6 5 3 Treads 5 | . . . . . 22 . . . Leg 6 | . 28 28 28 28 1 . . . Hover 4 | . . . . . . . 11 13 Flight 9 | . . . . . . 29 11 . Device 7 | . 14 8 . . . 3 13 18 Storage 5 | . 14 14 14 14 9 . . . Processor 9 | . . 5 14 14 16 8 6 4 Hackware 9 | . . . . . . 17 17 14 Protection 7 | . . . . . 7 14 9 8 Energy Gun 2 | . 13 . . . 2 . 2 . Ballistic Gun 5 | . 14 14 11 14 5 4 2 2 Impact Weapon 4 | . . 8 7 . 5 5 3 3 Peak Build Rating 78 | 7 8 18 12 11 34 48 69 78 Average Rating 36 | 5 7 10 11 11 24 42 56 61 On Entrance 20 | . 7 8 12 11 11 32 35 67 Naked Turns . | . . . . . . . . . Heaviest Build 35 | 12 14 16 29 19 35 20 29 34 Greatest Support 82 | 20 20 20 20 20 82 20 41 45 Greatest Overweight (x) 4 | . . . 1 . 1 4 1 1 Average Overweight (x) . | . . . . . . . . . Largest Inventory Capacity 15 | 8 8 8 15 10 10 10 5 5 Average Capacity 6 | 7 8 8 8 10 10 5 5 5 Most Carried 10 | 1 8 8 9 8 10 8 5 5 Average Carried 6 | . 6 7 7 8 9 4 4 3 Final Capacity 10 | 8 8 8 10 10 10 5 5 5 Final Carried 9 | 1 8 7 8 8 9 4 5 5 Class Distribution -------------------- 32% | Hacker-Sprinter 31% | Mutant 22% | Hacker-Mutant 13% | Scavenger-Mutant Dominant Class ---------------- Mutant | -10/Materials Scavenger-Mutant | -10/Mines Mutant | -10/Exiles Mutant | -9/Mines Mutant | -8/Materials Hacker-Sprinter | -7/Factory Hacker-Mutant | -6/Factory Hacker-Mutant | -5/Factory Resources | -11 -10 -10 -10 -9 -8 -7 -6 -5 ----------- Run | Yrd Mat Min Exi Min Mat Fac Fac Fac Matter Collected 4109 | 236 94 217 . . 630 1076 1363 493 Remotely . | . . . . . . . . . Salvage Created 5915 | 19 333 161 . . 1591 1170 1814 827 Parts 267 | 5 32 9 . . 59 57 67 38 Haulers Intercepted 12 | . . . . . 3 3 5 1 Recyclers Shooed 4 | . 1 . . . 1 . 1 1 Parts Field Recycled . | . . . . . . . . . Retrieved Matter . | . . . . . . . . . Parts Self-Destructed . | . . . . . . . . . Prevented . | . . . . . . . . . Kills | -11 -10 -10 -10 -9 -8 -7 -6 -5 ------- Run | Yrd Mat Min Exi Min Mat Fac Fac Fac Combat Hostiles Destroyed 112 | . 10 8 . . 33 17 27 17 Melee 29 | . . 3 . . 6 5 9 6 Guns 38 | . 8 1 . . 22 5 2 . AOE 29 | . 2 4 . . 1 1 10 11 Classes Destroyed 18 | 1 5 . . . 7 3 1 1 Worker 11 | . 2 . . . 3 1 1 4 Builder 7 | . . . . . 2 . 1 4 Tunneler 3 | 1 . 1 . . . . . 1 Hauler 12 | . . . . . 3 3 5 1 Recycler 3 | . . . . . . 1 1 1 Mechanic 1 | . . . . . 1 . . . Operator 5 | . . . . . 2 . 3 . Drone 1 | . . . . . . . 1 . Watcher 20 | . 2 . . . 4 5 6 3 Swarmer 38 | . 6 5 . . 7 3 10 7 Cutter 1 | . . . . . . 1 . . Grunt 34 | . 2 3 . . 18 1 5 5 Brawler 1 | . . . . . . . . 1 Duelist 2 | . . . . . 1 . . 1 Sentry 14 | . . . . . 6 4 3 1 Hunter 4 | . . . . . 1 1 2 . Programmer 15 | . . . . . . 7 6 2 Subdweller 2 | . 2 . . . . . . . Best Kill Streak 9 | 1 3 3 . . 6 5 8 9 Combat Bots Only 7 | . 3 3 . . 6 4 7 4 Max Kills in Single Turn 6 | 1 2 3 . . 1 1 3 6 Gunslinging 1 | . 1 . . . . . . . Exploded 4 | . 1 3 . . 1 1 3 4 Melee 1 | . . 1 . . 1 1 1 1 Uniques/NPCs Destroyed . | . . . . . . . . . Combat | -11 -10 -10 -10 -9 -8 -7 -6 -5 -------- Run | Yrd Mat Min Exi Min Mat Fac Fac Fac Hostile Shots Fired 1246 | . 41 41 . . 255 266 345 298 Missed 504 | . 18 16 . . 70 124 160 116 Damage Taken 8616 | . 192 259 . . 2035 1509 1964 2657 Core 2012 | . 28 46 . . 249 336 340 1013 Absorbed by Shields 253 | . . . . . . 155 98 . Redirected to Shielding 349 | . . . . . . 67 173 109 Ignored by Resistances 2689 | . 61 81 . . 733 492 584 738 Regen/Repaired (Parts) 1067 | . . . . . 109 567 391 . Core Remaining (%) 67 | 100 . . . 70 54 52 60 . Volleys Fired 316 | 2 22 19 . . 68 105 66 34 Largest 2 | 2 2 2 . . 1 1 2 1 Hottest 90 | 70 70 53 . . 39 55 90 81 Shots Fired 430 | 4 44 25 . . 132 104 87 34 Gun 352 | 4 42 19 . . 114 88 73 12 Cannon 19 | . . . . . 18 . . 1 Launcher 57 | . 2 6 . . . 16 13 20 Special 2 | . . . . . . . 1 1 Kinetic 209 | 2 22 19 . . 71 59 26 10 Thermal 84 | 2 20 . . . 61 . . 1 Explosive 52 | . 2 6 . . . 11 13 20 Electromagnetic 84 | . . . . . . 34 47 3 Robot Hit Streak 25 | 2 8 8 . . 25 24 17 7 Robot Miss Streak 3 | 1 3 1 . . 2 2 3 3 Penetration Max 1 | . . . . . . 1 1 . Secondary Targets 1 | . 1 . . . . . . . Max Gunslinging Chain 1 | . 1 . . . . . . . Autonomous 61 | . . . . . 61 . . . Shots Hit Robots 518 | 2 25 26 4 1 157 140 129 34 Core Hits 225 | 1 18 12 . . 53 39 49 53 Critical Kills 2 | . . . . . 1 1 . . Critical Parts Destroyed 33 | . . 1 . . 8 13 9 2 Critical Strikes 42 | . 2 2 . . 9 14 12 3 Burn 2 | . 2 . . . . . . . Destroy 3 | . . . . . 1 1 1 . Corrupt 1 | . . . . . . . 1 . Smash 34 | . . 2 . . 8 13 9 2 Sever 1 | . . . . . . . . 1 Impale 1 | . . . . . . . 1 . Melee Attacks 345 | . . 9 7 1 56 95 146 31 Impact 300 | . . 9 . . 50 83 136 22 Slashing 9 | . . . . . . . . 9 Piercing 10 | . . . . . . . 10 . Sneak Attacks 37 | . . 1 4 . 13 12 4 3 Combat Hostiles 1 | . . . . . . . 1 . Follow-up Attacks . | . . . . . . . . . Damage Inflicted 19460 | 22 425 1015 . . 4749 3466 5533 4250 Guns 5235 | 22 264 131 . . 2238 1220 1179 181 Cannons 326 | . . . . . 319 . . 7 Explosions 5512 | . 156 522 . . 230 457 1140 3007 Melee 8128 | . . 362 . . 1847 1789 3122 1008 Ramming 259 | . 5 . . . 115 . 92 47 Kinetic 2752 | 9 86 131 . . 948 983 439 156 Thermal 2363 | 13 178 106 . . 1839 90 137 . Explosive 4802 | . 156 416 . . . 220 1003 3007 Electromagnetic 1156 | . . . . . . 384 740 32 Impact 7459 | . . 362 . . 1847 1789 2768 693 Slashing 315 | . . . . . . . . 315 Piercing 354 | . . . . . . . 354 . Highest Corruption 14 | . . . . . 7 3 2 14 Average Corruption 4 | . . . . . 6 1 1 8 Corruption Purged 6 | . . . . . . 3 2 1 Corruption Blocked . | . . . . . . . . . Effects 135 | . . . . . 86 23 17 9 Message Errors 37 | . . . . . 25 6 4 2 Matter Fused 30 | . . . . . 22 2 1 5 Heat Flow Errors 20 | . . . . . 10 2 7 1 Energy Discharges 11 | . . . . . 6 4 1 . Parts Rejected 3 | . . . . . 1 1 . 1 Data Loss (minor) 19 | . . . . . 13 4 2 . Data Loss (major) 7 | . . . . . 6 1 . . Misfires 4 | . . . . . 3 1 . . Alerts 2 | . . . . . . . 2 . Weapon Failures 2 | . . . . . . 2 . . Overload Shots . | . . . . . . . . . Overflow Damage 3303 | . . 88 . . 748 757 1245 465 Projectiles . | . . . . . . . . . Explosions 362 | . . 25 . . 82 . 85 170 Melee 2941 | . . 63 . . 666 757 1160 295 Knockbacks 28 | . . . . . 7 6 10 5 Impact 25 | . . . . . 5 6 9 5 Kinetic 2 | . . . . . 2 . . . Secondary 1 | . . . . . . . 1 . Self-Inflicted Damage 534 | . . 41 . . 84 74 305 30 Shots 12 | . . 2 . . 1 2 7 . Rammed 33 | . . . . . 21 . . 12 Targets Rammed 37 | . 1 . . . 24 . . 12 Kicked 2 | . 1 . . . 1 . . . Crushed 2 | . . . . . 2 . . . Highest Temperature 457 | 40 90 27 . . 277 247 457 218 Average Temperature 78 | 20 30 9 . . 103 66 90 58 Received Heat Transfer 1951 | . 36 159 . . 981 201 205 369 Effects 1 | . . . . . . . 1 . Energy Bleed 1 | . . . . . . . 1 . Siege Activations . | . . . . . . . . . Robots Corrupted 32 | . . . . . 7 9 13 3 Combat Hostiles 16 | . . . . . 4 6 6 . Parts Fried 51 | . . 1 . . 10 9 24 7 Impact Corruptions 103 | . . 4 . . 21 27 43 8 Robots Melted . | . . . . . . . . . Combat Hostiles . | . . . . . . . . . Parts Melted 4 | . 1 . . . 3 . . . Heat Transferred 3225 | 37 666 100 . . 2222 50 150 . Parts Sabotaged . | . . . . . . . . . Parts Stolen . | . . . . . . . . . Parts Stripped . | . . . . . . . . . Power Chain Reactions 5 | . . . . . . 1 4 . Alert | -11 -10 -10 -10 -9 -8 -7 -6 -5 ------- Run | Yrd Mat Min Exi Min Mat Fac Fac Fac Peak Influence 774 | 5 267 201 . . 217 199 474 774 Initial 59 | . 2 1 . . . 37 59 5 Average 91 | 2 77 45 . . 63 53 114 286 Maximum Alert Level 3 | . 1 1 . . 1 . 2 3 Low Security (%) 89 | 100 97 96 . 100 98 100 78 50 Level 1 6 | . 2 3 . . 1 . 18 4 Level 2 3 | . . . . . . . 2 40 Level 3 . | . . . . . . . . 4 Level 4 . | . . . . . . . . . Level 5 . | . . . . . . . . . High Security . | . . . . . . . . . Max Security . | . . . . . . . . . Squads Dispatched 57 | . 1 . . . 5 20 25 6 Investigation 25 | . 1 . . . 3 6 14 1 Extermination 11 | . . . . . . 4 6 1 Reinforcement 21 | . . . . . 2 10 5 4 Assault . | . . . . . . . . . Garrison . | . . . . . . . . . Intercept . | . . . . . . . . . Searches Triggered . | . . . . . . . . . Construction Impeded 4 | . . . . . . 1 1 2 Haulers Reinforced 2 | . . . . . . 1 1 . Active Scanning Responses . | . . . . . . . . . Cargo Convoy Interrupts 1 | . . . . . . 1 . . Stealth | -11 -10 -10 -10 -9 -8 -7 -6 -5 --------- Run | Yrd Mat Min Exi Min Mat Fac Fac Fac Distress Signals 11 | . 1 . . . 4 4 . 2 Communications Jammed 16 | . . . . . . . . 16 Distress Signals 15 | . . . . . . . . 15 Times Spotted 219 | . 18 11 . . 45 38 61 46 Peak Tracking Total 12 | . 3 3 . . 6 4 5 12 Tactical Retreats 32 | . 2 1 . . 5 4 14 6 Traps | -11 -10 -10 -10 -9 -8 -7 -6 -5 ------- Run | Yrd Mat Min Exi Min Mat Fac Fac Fac Traps Triggered 17 | . 1 . . . 2 4 8 2 Indirectly . | . . . . . . . . . Trap Hack Attempts 14 | . . . . . . 14 . . Triggered . | . . . . . . . . . Disarmed 1 | . . . . . . 1 . . Reprogrammed 4 | . . . . . . 4 . . Reused 1 | . . . . . . 1 . . Traps Extracted . | . . . . . . . . . Installed . | . . . . . . . . . Triggered 7 | . . . . . 2 2 3 . Machines | -11 -10 -10 -10 -9 -8 -7 -6 -5 ---------- Run | Yrd Mat Min Exi Min Mat Fac Fac Fac Machines Disabled 23 | . . 1 . . 3 1 11 7 Max in Single Turn 3 | . . 1 . . 2 1 3 2 Garrison Access 3 | . . . . . 1 1 1 . Machines Repaired . | . . . . . . . . . Machines Dismantled . | . . . . . . . . . Machines Sabotaged . | . . . . . . . . . Overloaded Fab Kills . | . . . . . . . . . Hacking | -11 -10 -10 -10 -9 -8 -7 -6 -5 --------- Run | Yrd Mat Min Exi Min Mat Fac Fac Fac Machines Accessed 62 | . 4 . 2 . 7 20 27 2 Terminals 30 | . 2 . . . 3 10 14 1 Fabricators 6 | . . . . . . 2 4 . Repair Stations 8 | . . . . . 1 4 3 . Recycling Units 7 | . 2 . . . . 2 2 1 Scanalyzers 6 | . . . . . 2 1 3 . Garrison Access 3 | . . . . . 1 1 1 . Total Hacks 192 | . 8 . 4 . 17 80 78 5 Successful 143 | . 6 . 4 . 13 57 60 3 Failed 49 | . 2 . . . 4 23 18 2 Catastrophic 6 | . . . . . . 2 4 . Database Lockouts . | . . . . . . . . . Manual 33 | . 2 . 1 . 3 15 10 2 Terminals 94 | . 4 . . . 9 38 39 4 Fabricators 18 | . . . . . . 7 11 . Repair Stations 30 | . . . . . 2 19 9 . Recycling Units 12 | . 4 . . . . 4 3 1 Scanalyzers 28 | . . . . . 4 11 13 . Garrison Access 6 | . . . . . 2 1 3 . Terminal Hacks 53 | . 3 . 4 . 5 16 24 1 Record 6 | . . . 3 . 1 1 1 . Level Access Points 2 | . . . . . . 1 1 . Branch Access Points 3 | . 1 . . . . 1 1 . Emergency Access Points 1 | . . . . . . 1 . . Machine Index 1 | . . . . . . . 1 . Terminal Index 4 | . 1 . . . 1 1 1 . Repair Station Index 1 | . . . . . . 1 . . Scanalyzer Index 2 | . . . . . . 1 1 . Alert Level 6 | . . . . . 1 1 4 . Unreport Threat 2 | . . . . . . . 2 . Locate Traps 4 | . . . . . . 2 2 . Reprogram Traps 1 | . . . . . . 1 . . Dispatch Records 1 | . . . . . 1 . . . Security Status 2 | . . . . . . 1 1 . Patrol Status 1 | . . . . . . 1 . . Transport Status 2 | . . . . . 1 1 . . Recall Investigation 1 | . . . . . . . 1 . Hauler Manifests 3 | . 1 . . . . . 2 . Registered Components 1 | . . . . . . . 1 . Registered Prototypes 1 | . . . . . . . 1 . Zone Layout 7 | . . . . . . 2 4 1 Derelict Proto ID Bank 1 | . . . 1 . . . . . Fabricator Hacks 12 | . . . . . . 3 9 . Network Status 1 | . . . . . . . 1 . Load Schematic 7 | . . . . . . 2 5 . Build 4 | . . . . . . 1 3 . Repair Station Hacks 28 | . . . . . 2 18 8 . Scan Component 14 | . . . . . 1 9 4 . Repair 14 | . . . . . 1 9 4 . Recycling Unit Hacks 11 | . 3 . . . . 4 3 1 Process 1 | . . . . . . 1 . . Report Inventory 9 | . 2 . . . . 3 3 1 Retrieve Components 1 | . 1 . . . . . . . Scanalyzer 26 | . . . . . 4 10 12 . Insert Component 10 | . . . . . 2 4 4 . Analyze 16 | . . . . . 2 6 8 . Garrison Access Hacks 3 | . . . . . 1 1 1 . Seal Access 3 | . . . . . 1 1 1 . Unauthorized Hacks 10 | . . . . . 1 5 3 1 Terminals 9 | . . . . . 1 4 3 1 Assimilate 3 | . . . . . . 2 1 . Botnet 5 | . . . . . . 2 2 1 Operators 1 | . . . . . 1 . . . Fabricators . | . . . . . . . . . Repair Stations . | . . . . . . . . . Recycling Units . | . . . . . . . . . Scanalyzers 1 | . . . . . . 1 . . Extract 1 | . . . . . . 1 . . Garrison Access . | . . . . . . . . . Data Cores Recovered 3 | . . . . . . . 3 . Used 2 | . . . . . . . 2 . Hacking Detections 49 | . 3 . . . 2 18 25 1 Full Trace Events 22 | . 2 . . . 1 5 13 1 Feedback Events 2 | . . . . . . 1 . 1 Corruption 2 | . . . . . . 1 . 1 Feedback Blocked . | . . . . . . . . . Robot Schematics Acquired . | . . . . . . . . . Robots Built . | . . . . . . . . . Authchips . | . . . . . . . . . Time . | . . . . . . . . . Total Robot Build Rating . | . . . . . . . . . Part Schematics Acquired 14 | . . . . . 2 9 3 . Parts Built 5 | . . . . . . 1 4 . Authchips . | . . . . . . . . . Time 214 | . . . . . . 36 178 . Total Part Build Rating 17 | . . . . . . 3 14 . Parts Repaired 14 | . . . . . 1 9 4 . Time 479 | . . . . . 26 352 101 . Parts Recycled . | . . . . . . . . . Recycled Matter 25 | . . . . . . 25 . . Retrieved Matter . | . . . . . . . . . Retrieved Components 10 | . 10 . . . . . . . Parts Scanalyzed 10 | . . . . . 2 4 4 . Part Schematics Acquired 9 | . . . . . 2 4 3 . Parts Damaged 1 | . . . . . . . 1 . Bothacking | -11 -10 -10 -10 -9 -8 -7 -6 -5 ------------ Run | Yrd Mat Min Exi Min Mat Fac Fac Fac Used RIF Installer . | . . . . . . . . . Robots Hacked 13 | . . . 3 . 2 7 1 . Non-combat 12 | . . . 2 . 2 7 1 . Combat 1 | . . . 1 . . . . . Robot Hacks Applied 17 | . . . 3 . 4 9 1 . parse_system 6 | . . . 3 . 1 2 . . no_distress 6 | . . . . . 2 3 1 . find_chute 2 | . . . . . . 2 . . find_fabricator 2 | . . . . . . 2 . . check_alert 1 | . . . . . 1 . . . Relay Couplers Released 8 | . . . . . . 4 . 4 Programmers 8 | . . . . . . 4 . 4 Fabnet Peak Effective % . | . . . . . . . . . Robots Rewired 1 | . . . . . . 1 . . Allies Hacked . | . . . . . . . . . Hacks Repelled . | . . . . . . . . . Allies | -11 -10 -10 -10 -9 -8 -7 -6 -5 -------- Run | Yrd Mat Min Exi Min Mat Fac Fac Fac Total Allies 7 | . . . . . . 3 4 . Largest Group 3 | . . . . . . 1 3 . Highest-Rated Group 93 | . . . . . . 26 93 . Highest-Rated Ally 31 | . . . . . . 26 31 . Total Orders 7 | . . . . . . 2 . 5 ROAM 1 | . . . . . . . . 1 DROP 1 | . . . . . . 1 . . COLLECT 1 | . . . . . . 1 . . EXPLORE 3 | . . . . . . . . 3 RETURN 1 | . . . . . . . . 1 Ally Attacks 10 | . . . . . . . 10 . Total Damage 168 | . . . . . . . 168 . Kills 2 | . . . . . . . 2 . Allies Corrupted . | . . . . . . . . . Allies Melted . | . . . . . . . . . Intel | -11 -10 -10 -10 -9 -8 -7 -6 -5 ------- Run | Yrd Mat Min Exi Min Mat Fac Fac Fac Robot Analysis Total . | . . . . . . . . . Derelict Logs Recovered 1 | . . 1 . . . . . . Drone Launches 2 | . . . . . . . . 2 Drone Recoveries 2 | . . . . . . . . 2 Exploration | -11 -10 -10 -10 -9 -8 -7 -6 -5 ------------- Run | Yrd Mat Min Exi Min Mat Fac Fac Fac Turns Passed 15212 | 83 875 1239 1037 73 3436 3336 4021 1112 Spaces Moved 17297 | 59 651 960 843 60 1780 5359 6244 1341 Core 46 | 6 . . . . . 1 . 39 Treads 1658 | . . . . . 1656 . . 2 Legs 2692 | 53 651 960 843 60 124 . . 1 Wheels . | . . . . . . . . . Hover 4260 | . . . . . . . 3183 1077 Flight 8641 | . . . . . . 5358 3061 222 Fastest Speed 23 | 50 120 120 120 120 120 26 23 35 Average Speed 60 | 112 120 120 120 120 160 26 36 53 Slowest Speed 250 | 120 120 120 190 120 225 250 120 160 Overloaded Moves 101 | . . . . . . . 48 53 Propulsion Burnouts . | . . . . . . . . . Robots Hopped 11 | . . . . . . 5 4 2 Cave-ins Triggered . | . . . . . . . . . Exploration Rate (%) 57 | 5 68 96 93 13 67 77 83 19 Regions Visited 8 Branch Regions 3 Pre-discovered Areas 1 | . . . 1 . . . . . Known Exits Taken 7 | . 1 1 1 1 1 1 1 . Unknown Exits Taken 1 | 1 . . . . . . . . Scrap Searched 1 | . . 1 . . . . . . Spaces Dug 109 | . . . . . 9 33 53 14 Terrain Destroyed 492 | . 10 71 . . 34 64 151 162 Melee 99 | . . . . . 9 33 53 4 Projectile 4 | . . . . . 4 . . . AOE 388 | . 10 71 . . 21 31 97 158 Terrain Rammed 2 | . . . . . . . 1 1 Walls Destroyed 1 | . . . . . . . 1 . Machines Disabled . | . . . . . . . . . Actions | -11 -10 -10 -10 -9 -8 -7 -6 -5 --------- Run | Yrd Mat Min Exi Min Mat Fac Fac Fac Total 21344 | 68 708 1015 859 60 2219 7063 7705 1647 Wait 2743 | . 9 8 . . 239 1318 990 179 Move 17268 | 58 650 959 842 59 1779 5349 6235 1337 Hop 10 | . . . . . . 4 4 2 Pick Up 71 | 1 14 3 1 . 12 19 19 2 Fast Attach 71 | 7 . 1 . . 13 16 17 17 Attach 54 | . . . 1 . 6 15 25 7 Detach 35 | . . . 1 . 1 7 21 5 Swap 136 | . 4 10 4 . 6 60 49 3 Drop 90 | . 8 6 3 . 15 25 24 9 Fire 316 | 2 22 19 . . 68 105 66 34 Melee 345 | . . 9 7 1 56 95 146 31 Ram 14 | . . . . . . . 1 13 Kick 2 | . 1 . . . 1 . . . Crush 23 | . . . . . 23 . . . Escape Stasis 152 | . . . . . . 36 108 8 Rewire . | . . . . . . . . . Trap 14 | . . . . . . 14 . . Miscellaneous . | . . . . . . . . . Route ------- -11/Scrapyard -10/Materials (discovered 2 exits: *Mat / *Min) -10/Mines (discovered 3 exits: *Mat x2 / *Exi) -10/Exiles (discovered 2 exits: *Min x2) -9/Mines -8/Materials -7/Factory (discovered 6 exits: *Fac x4 / *Low x2) -6/Factory (discovered 6 exits: *Fac x4 / Low x2) -5/Factory History --------- Turn | Location | Event 2 | -11/Scrapyard | Met Revision 17 24 | -11/Scrapyard | Discovered new exit (range 16) 84 | -11/Scrapyard | Entered Materials 306 | -10/Materials | Build established: Mutant 431 | -10/Materials | Discovered new exit (range 15) 574 | -10/Materials | Identified exit to Mines 744 | -10/Materials | Discovered new exit (range 5) 884 | -10/Materials | Derelicts attacked the area 959 | -10/Materials | Entered Mines 1078 | -10/Mines | Received a Rocket Launcher from a helpful Derelict 1162 | -10/Mines | Discovered new exit (range 11) 1238 | -10/Mines | Build established: Scavenger-Mutant 1240 | -10/Mines | A weapon hastily lodged in a ceiling crevice suddenly fell to the ground 1668 | -10/Mines | Found a damaged Exp. Sensor Array with a note attached 1673 | -10/Mines | Found Prototype Device 1674 | -10/Mines | Identified Exp. Sensor Array 1688 | -10/Mines | Discovered new exit (range 7) 1731 | -10/Mines | Identified exit to Materials 1861 | -10/Mines | Joined a pair of Derelicts in attacking an 0b10 outpost 1971 | -10/Mines | Build established: Mutant 2192 | -10/Mines | Deemed a non-threat by the Exiles lab entrance 2194 | -10/Mines | Discovered new exit (range 5) 2197 | -10/Mines | Identified exit to Exiles 2198 | -10/Mines | Entered Exiles 2225 | -10/Exiles | Discovered new exit (range 15) 2243 | -10/Exiles | Identified exit to Mines 2267 | -10/Exiles | Met 8R-AWN 2285 | -10/Exiles | Met EX-HEX 2348 | -10/Exiles | Met EX-DEC 2375 | -10/Exiles | Visited The Gauntlet 2604 | -10/Exiles | Met EX-BIN 2632 | -10/Exiles | Aligned with FarCom system 2633 | -10/Exiles | Given EX-Vault access code 2698 | -10/Exiles | Opened EX-Vault 2748 | -10/Exiles | Warned to stay clear of 0b10 Research branches 2948 | -10/Exiles | Found AWS/Thermal 3031 | -10/Exiles | Learned location of Zion (-7) 3135 | -10/Exiles | Discovered exit to Mines (range 10) 3235 | -10/Exiles | Left Exiles lab with AWS/Thermal 3235 | -10/Exiles | Entered Mines 3235 | -9/Mines | Discovered new exit (range 6) 3244 | -9/Mines | Met a Derelict bent on vengeance 3290 | -9/Mines | Identified exit to Materials 3300 | -9/Mines | Assembled infested the area 3305 | -9/Mines | Assisted by a Guerilla fighting off Assembled 3308 | -9/Mines | Entered Materials 3308 | -8/Materials | Evolved 4 slots: Propulsion x2, Utility x2 3735 | -8/Materials | Discovered new exit (range 11) 3778 | -8/Materials | Identified exit to Factory 4626 | -8/Materials | Build established: Scavenger-Mutant 5195 | -8/Materials | Repaired Lgt. Treads 5813 | -8/Materials | Build established: Mutant 6744 | -8/Materials | Entered Factory 6744 | -7/Factory | Evolved 2 slots: Utility x2 6977 | -7/Factory | Repaired Mak. Hammer? 7048 | -7/Factory | Build established: Hacker-Sprinter 7299 | -7/Factory | Discovered new exit (range 5) 7301 | -7/Factory | Identified exit to Lower Caves 7515 | -7/Factory | Fabricated Hacking Suite? 8155 | -7/Factory | Repaired Arc Projector 8321 | -7/Factory | Cargo convoy interrupted 8681 | -7/Factory | Repaired Imp. Light Armor Plating 8708 | -7/Factory | Repaired Propulsion Shielding 8754 | -7/Factory | Repaired Arc Projector 9301 | -7/Factory | Repaired Imp. VTOL Module 9348 | -7/Factory | Discovered new exit (range 9) 9523 | -7/Factory | Repaired Imp. VTOL Module 9569 | -7/Factory | Repaired Lyr. Light Armor Plating 9614 | -7/Factory | Repaired Mak. Hammer? 9848 | -7/Factory | Identified exit to Factory 10080 | -7/Factory | Entered another Factory area 10080 | -6/Factory | Evolved 2 slots: Utility x2 10110 | -6/Factory | Lost 3 parts (3u) 10341 | -6/Factory | Fabricated Lyr. Light Armor Plating? 10665 | -6/Factory | Identified exit to Lower Caves 10694 | -6/Factory | Destroyed 7 combat bots 10860 | -6/Factory | Repaired Imp. Propulsion Shielding 10884 | -6/Factory | Repaired Lyr. Light Armor Plating 11057 | -6/Factory | Discovered new exit (range 5) 11120 | -6/Factory | Repaired VTOL Module 11524 | -6/Factory | Fabricated Imp. VTOL Module (x1) 11530 | -6/Factory | Identified exit to Factory 12185 | -6/Factory | Build established: Hacker-Mutant 12340 | -6/Factory | Fabricated Hacking Suite (x1) 12584 | -6/Factory | Repaired Lyr. Light Armor Plating 12629 | -6/Factory | Spotted B-75 Beast 14101 | -6/Factory | Entered another Factory area 14101 | -5/Factory | Evolved 2 slots: Utility x2 15042 | -5/Factory | Lost 14 parts (1p2n8u3w) 15083 | -5/Factory | System corruption reached 10% 15153 | -5/Factory | Core integrity fell below 50% 15196 | -5/Factory | Core integrity fell below 20% 15213 | -5/Factory | Destroyed by H-66 Slayer with Gauss Rifle Last Messages --------------- Penetrated by Slug. S-27 Virus destroyed. Acquired VTOL Module. Slug penetrates Wall. Acquired 51 matter. G-50 Soldier destroyed. Acquired 4 matter. Penetrated by Slug. VTOL Module destroyed. Acquired Carbon-fiber Leg. Knocked back. Acquired 10 matter. Slug penetrates Wall. B-60 Warrior destroyed. Penetrated by Slug. Carbon-fiber Leg destroyed. Acquired Imp. Treads. System corrupted: Matter fused (-5). Imp. Treads destroyed. Penetrated by Slug. Map ----- +----------------------------------------------------+ | ?????????????????????????????????????????????????? | | ?????????????????????????????????????????????????? | | ??????????????????????????????????????????????#### | | ??????????????????????????????????????????????# | | ??????????????????????????????????????????????# | | ??????????????????????????????????????????????# ! | | ??????????????????????????????????????????????# | | ??????????????????????????????????????????????# | | ??????????????????????????????????????????????# | | ????????????????????????????????##????????????# | | ??????????????????????????????### ########????# | | ??????????????????????????????# """ #????# | | ??????????????????????????????# ""R" #????#### | | ??????????????????????????????# "" " #???????# | | ??????????????????????????????# ######### | | ??????????????????????????????# + | | ??????????????????????????????# ! ###### | | ?????????????????????????????+# #????# | | ????????????????????????????? # #????# | | ????????????????????????????? # """"""" ###### | | ????????????????????????????# # """"""" ## | | ????????????????????????????# # """"""" ## | | ????????????????????????????# # """"""" ## | | ???????????????????????###### # ## #### | | ???????????????????????# # # ## #### | | ???????????????????????# @!%# # ## # | | ???????????????????????#!!!%# #####+####### # "" | | ???????????????????????#sghY# # "" | | ???????????????????????#!g!=+[ + "" | | ???????????????????????#%[=*# # | | ???????????????????????# * # ###########/## | | ?????????????????h?????# # # ! # | | ?????????????????h?????# ! # #! #### | | ???????????????????????###### # * #??? | | ?????????????????????####### # #??? | | ????????????????? # "" "" #??? | | ???????????????? + "" "" #??? | | ?????????????????"""" """ """" # """ """ #??? | | ????????????????????? """ """" # """ """ #??? | | ??????????????????????""" """" #! """ """ #??? | | ?????????????????????? """" # #??? | | ????????????????????? ?"""" # #??? | | ????????????????????? ??"""" # #??? | | ????????????????????? ! ???"""" ##############??? | | ???????????????????? ??????? #???????????????? | | ?????????????????????????????? #???????????????? | | ?????????????????????????????? #???????????????? | | ?????????????????????????????? #???????????????? | | ?????????????????????????????? ????????????????? | | ?????????????????????????????? ????????????????? | +----------------------------------------------------+ Best States ------------- Heat Dissipation 40 Energy Generation 18 Energy Capacity 310 Matter Stores 300 Matter Capacity 300 Sight Range 22 Robot Scan Range 20 Terrain Scan Density 10 ECM Strength 2 Jamming Range 14 Armor Coverage 300 Resistance: KI 40 Resistance: TH 20 Resistance: EX 20 Resistance: EM 20 Resistance: I 20 Resistance: S 20 Resistance: P 20 Propulsion Shielding 66 Point Defense Rating 80 Evasion (%) 74 Recoil Reduction 4 Offensive Hacking 40 Defensive Hacking 10 Item Schematics ----------------- Hacking Suite | -8/Materials | Scanalyzed Cesium-ion Thruster | -8/Materials | Scanalyzed Imp. VTOL Module | -7/Factory | Scanalyzed Lyr. Light Armor Plating | -7/Factory | Scanalyzed Arc Projector | -7/Factory | Scanalyzed Propulsion Shielding | -7/Factory | Scanalyzed Katana | -7/Factory | Extracted Adv. ECM Suite | -7/Factory | Extracted Com. Matter Pod | -7/Factory | Extracted Arm. Huge Wheel | -7/Factory | Extracted Imp. Terrain Scanner | -7/Factory | Extracted Imp. Propulsion Shielding | -6/Factory | Scanalyzed Imp. Hacking Suite | -6/Factory | Scanalyzed Cld. Aerolev Unit | -6/Factory | Scanalyzed Robot Schematics ------------------ None Fabricated ------------ Hacking Suite | x1 | -7/Factory Lyr. Light Armor Plating | x2 | -6/Factory Imp. VTOL Module | x1 | -6/Factory Hacking Suite | x1 | -6/Factory Alien Tech Used ----------------- None Achievements -------------- Brute Force Can't Catch Me Novice Programmer Prolific Hacker Total Silence True Hacker Challenges ------------ None Game ------ Seed ThiefNuclearBattery Manual? 0 Play Time 05:04:44 Cumulative 26.1 hours Start 2024.08.06 @ 17:24:09 End 2024.08.09 @ 15:47:37 Sessions 19 Manual Loads 0 Difficulty Adventurer Special Mode None Game No. 12 Rogue 0 Adventurer 12 Explorer 0 Win Type - Total 0 Types 0/0/0/0/0/0/0/0/0 Lore% 11 Gallery% 24 Achievement% 24 Wizard Run 0 Options --------- Layout 1 ASCII 0 Keyboard 1 Movement Vi Keybinds 0 Fullscreen 2 Font 24/Terminus Map View 50x35 Zoom Use 0% Tactical HUD 0 Map Filters NONE Filters NONE Steam 1 RUN: a23802c0-76d3-4dbb-be96-e3ec8ec4cde5